[Event "British Championship 2024"]
[Site "Hull"]
[Date "2024.08.01"]
[Round "6.36"]
[White "Pal, Rohan"]
[Black "Mitchell, Martin"]
[Result "1/2-1/2"]
[Annotator "RC"]
[ECO "B07"]
[WhiteElo "2097"]
[BlackElo "2159"]
[PlyCount "139"]
[EventDate "2024.07.31"]
[EventCountry "GBR"]
[SourceTitle "playchess.com"]
[Source "ChessBase"]
[SourceQuality "1"]
[TimeControl "40/5400+30:1800+30"]

1. e4 {[%emt 0:00:03]} d6 {[%emt 0:00:49]} 2. d4 {[%emt 0:00:04]} Nf6 {[%emt 0:00:05]} 3. Nc3 {[%emt 0:00:03]} g6 {[%emt 0:00:07]} 4. g3 {[%emt 0:00:03]} Bg7 {[%emt 0:00:22]} 5. Bg2 {[%emt 0:00:05]} O-O {[%emt 0:01:21]} 6. Nge2 {[%emt 0:00:08]} Nbd7 {[%emt 0:00:30]} 7. O-O {[%emt 0:00:11]} c5 {[%emt 0:00:19]} 8. h3 {[%emt 0:00:05]} Rb8 {[%emt 0:01:01]} 9. Be3 {[%emt 0:00:39]} b6 {[%emt 0:00:54]} 10. g4 {[%emt 0:00:31]} cxd4 {[%emt 0:02:13]} 11. Bxd4 {[%emt 0:02:49]} h6 {[%emt 0:04:46]} 12. Ng3 {[%emt 0:07:36]} Bb7 {[%emt 0:07:32]} 13. Qd2 {[%emt 0:04:53]} a6 {[%emt 0:02:06]} 14. a4 {[%emt 0:02:58]} Kh7 {[%emt 0:29:05]} 15. Be3 {[%emt 0:07:23]} Qc7 {[%emt 0:04:13]} 16. f4 {[%emt 0:02:14]} Rbc8 {[%emt 0:04:52]} 17. Rf2 {[%emt 0:04:38]} Ne8 {[%emt 0:07:22]} 18. Nge2 {[%emt 0:04:30]} Nc5 {[%emt 0:09:04]} 19. Bf3 {[%emt 0:21:57]} e5 {[%emt 0:03:04]} 20. f5 {[%emt 0:00:53]} Nf6 {[%emt 0:02:50]} 21. Ng3 {[%emt 0:05:00]} d5 {[%emt 0:01:46]} 22. exd5 {[%emt 0:03:38]} e4 {[%emt 0:00:25]} 23. Bf4 {[%emt 0:04:28]} Qd7 {[%emt 0:01:14]} 24. Ngxe4 {[%emt 0:02:04]} Nfxe4 {[%emt 0:00:18]} 25. Nxe4 {[%emt 0:00:06]} Nxe4 {[%emt 0:00:40]} 26. Bxe4 {[%emt 0:00:05]} Bxb2 {[%emt 0:01:20]} 27. Rb1 {[%emt 0:01:28]} Qxa4 {[%emt 0:02:02]} 28. fxg6+ {[%emt 0:05:13]} fxg6 {[%emt 0:00:41]} 29. Qd3 {[%emt 0:03:37]} Bd4 {[%emt 0:02:36]} 30. Bxg6+ {[%emt 0:04:06]} Kg7 {[%emt 0:00:40]} 31. Be3 {[%emt 0:04:15]} Bxe3 {[%emt 0:02:12]} 32. Qxe3 {[%emt 0:00:05]} Rxf2 {[%emt 0:01:19]} 33. Qxf2 {[%emt 0:04:09]} Bxd5 {[%emt 0:01:12]} 34. Rf1 {[%emt 0:04:31]} Qc6 {[%emt 0:00:53]} 35. Bf5 {[%emt 0:00:45]} Re8 {[%emt 0:01:07]} 36. Qd4+ {[%emt 0:00:36]} Kg8 {[%emt 0:00:13]} 37. Bd3 {[%emt 0:02:39]} Qd6 {[%emt 0:02:25]} 38. Bh7+ {[%emt 0:00:27]} Kxh7 {[%emt 0:00:26]} 39. Rf7+ {[%emt 0:00:03]} Bxf7 {[%emt 0:00:22]} 40. Qxd6 {[%emt 0:00:04]} Re6 {[%emt 0:00:31]} 41. Qd3+ {[%emt 0:30:57]} Kg7 {[%emt 0:05:54]} 42. Qxa6 {[%emt 0:00:00]} Rc6 {[%emt 0:02:14]} 43. Qd3 {[%emt 0:00:00]} Rc4 {[%emt 0:00:39]} 44. Kf2 {[%emt 0:00:00]} b5 {[%emt 0:01:51]} 45. c3 {[%emt 0:00:00]} Kg8 {[%emt 0:01:48]} 46. Ke3 {[%emt 0:00:00]} b4 {[%emt 0:01:16]} 47. Qd8+ {[%emt 0:00:00]} Kg7 {[%emt 0:00:46]} 48. cxb4 {[%emt 0:00:00]} Rxb4 {[%emt 0:00:08]} 49. Kf2 {[%emt 0:00:00]} Re4 {[%emt 0:01:52]} 50. Kg3 {[%emt 0:00:00]} Re6 {[%emt 0:01:17]} 51. Qd4+ {[%emt 0:00:00]} Kg8 {[%emt 0:03:00]} 52. Kf4 {[%emt 0:06:31]} Rg6 {[%emt 0:01:00]} 53. h4 {[%emt 0:00:00]} Be6 {[%emt 0:04:17]} 54. Qd8+ {[%emt 0:00:00]} Kg7 {[%emt 0:03:14]} 55. Qe7+ {[%emt 0:00:00]} Bf7 {[%emt 0:00:24]} 56. Qe5+ {[%emt 0:00:00]} Kg8 {[%emt 0:01:02]} 57. Kf5 {[%emt 0:00:00]} Rc6 {[%emt 0:01:03]} 58. h5 {[%emt 0:00:00]} Ra6 {[%emt 0:03:57]} 59. g5 {[%emt 0:00:00]} hxg5 {[%emt 0:00:13]} 60. Kxg5 {[%emt 0:00:00]} Re6 {[%emt 0:00:39]} 61. Qb8+ {[%emt 0:00:00]} Kg7 {[%emt 0:02:56]} 62. Qb2+ {[%emt 0:00:00]} Kh7 {[%emt 0:01:34]} 63. Qc2+ {[%emt 0:00:00]} Kg7 {[%emt 0:00:47]} 64. Qc3+ {[%emt 0:00:00]} Kh7 {[%emt 0:00:24]} 65. Qd3+ {[%emt 0:00:04]} Kg7 {[%emt 0:00:17]} 66. Qd4+ {[%emt 0:00:11]} Kh7 {[%emt 0:00:46]} 67. Qc5 {[%emt 0:02:54]} Kg7 {[%emt 0:01:15]} 68. Kg4 {[%emt 0:03:28]} Re4+ {[%emt 0:01:19]} 69. Kg5 {[%emt 0:00:28]} Re6 {[%emt 0:00:20]} 70. Kg4 {[%emt 0:00:06]} 1/2-1/2

[Event "British Championship 2024"]
[Site "Hull"]
[Date "2024.08.01"]
[Round "6.37"]
[White "Stubbs, Oliver"]
[Black "Dicen, Elis Denele"]
[Result "1-0"]
[Annotator "RC"]
[ECO "D02"]
[WhiteElo "2146"]
[BlackElo "2073"]
[PlyCount "157"]
[EventDate "2024.07.31"]
[EventCountry "GBR"]
[SourceTitle "playchess.com"]
[Source "ChessBase"]
[SourceQuality "1"]
[TimeControl "40/5400+30:1800+30"]

1. d4 {[%emt 0:00:02]} d5 {[%emt 0:00:07]} 2. Nf3 {[%emt 0:00:04]} Nf6 {[%emt 0:00:07]} 3. Bf4 {[%emt 0:00:04]} e6 {[%emt 0:00:07]} 4. e3 {[%emt 0:00:06]} Bd6 {[%emt 0:00:04]} 5. Nbd2 {[%emt 0:00:08]} O-O {[%emt 0:00:23]} 6. c3 {[%emt 1:33:06]} c5 {[%emt 0:00:19]} 7. Bd3 {[%emt 0:00:00]} Qc7 {[%emt 0:01:44]} 8. Bxd6 {[%emt 0:00:00]} Qxd6 {[%emt 0:00:13]} 9. Ne5 {[%emt 0:00:00]} b6 {[%emt 0:06:36]} 10. f4 {[%emt 0:00:00]} Ba6 {[%emt 0:02:38]} 11. Bc2 {[%emt 0:00:00]} Nc6 {[%emt 0:05:31]} 12. g4 {[%emt 0:00:00]} cxd4 {[%emt 0:28:38]} 13. exd4 {[%emt 0:00:00]} Nd7 {[%emt 0:03:07]} 14. Nxd7 {[%emt 0:00:00]} Qxd7 {[%emt 0:01:15]} 15. Qf3 {[%emt 0:00:00]} Rac8 {[%emt 0:05:45]} 16. Qe3 {[%emt 0:00:00]} Qd6 {[%emt 0:13:20]} 17. O-O-O {[%emt 0:00:00]} b5 {[%emt 0:03:20]} 18. a3 {[%emt 0:00:00]} Na5 {[%emt 0:04:06]} 19. h4 {[%emt 0:00:00]} f6 {[%emt 0:03:07]} 20. Rde1 {[%emt 0:00:00]} Rc6 {[%emt 0:01:01]} 21. f5 {[%emt 0:00:00]} exf5 {[%emt 0:05:21]} 22. Bxf5 {[%emt 0:00:00]} Bc8 {[%emt 0:00:42]} 23. Qe7 {[%emt 0:00:00]} Qf4 {[%emt 0:06:17]} 24. Qe3 {[%emt 0:00:00]} Qd6 {[%emt 0:01:12]} 25. Kb1 {[%emt 0:00:00]} Nc4 {[%emt 0:01:03]} 26. Nxc4 {[%emt 0:00:00]} bxc4 {[%emt 0:00:15]} 27. Ka2 {[%emt 0:00:00]} Rb6 {[%emt 0:01:02]} 28. Qe7 {[%emt 0:00:00]} Qb8 {[%emt 0:02:02]} 29. Re2 {[%emt 0:01:09]} g6 {[%emt 0:02:24]} 30. Bxc8 {[%emt 0:01:26]} Qxc8 {[%emt 0:00:17]} 31. h5 {[%emt 0:03:10]} Rb7 {[%emt 0:01:22]} 32. Qd6 {[%emt 0:00:31]} Qd7 {[%emt 0:01:05]} 33. Re6 {[%emt 0:01:55]} Qb5 {[%emt 0:00:43]} 34. Qb4 {[%emt 0:01:16]} Qd7 {[%emt 0:00:39]} 35. Rd6 {[%emt 0:01:30]} Qf7 {[%emt 0:00:37]} 36. hxg6 {[%emt 0:01:23]} hxg6 {[%emt 0:00:13]} 37. Qc5 {[%emt 0:00:25]} Rfb8 {[%emt 0:00:54]} 38. Rh2 {[%emt 0:00:24]} Rb5 {[%emt 0:00:22]} 39. Qc6 {[%emt 0:00:46]} Qb7 {[%emt 0:01:19]} 40. Qxb7 {[%emt 0:01:15]} R8xb7 {[%emt 0:00:24]} 41. Rxf6 {[%emt 0:30:31]} Kg7 {[%emt 0:02:02]} 42. g5 {[%emt 0:00:00]} R5b6 {[%emt 0:02:53]} 43. Rf3 {[%emt 0:00:00]} a6 {[%emt 0:03:47]} 44. Rfh3 {[%emt 0:00:00]} Kf7 {[%emt 0:02:08]} 45. Rh7+ {[%emt 0:00:00]} Ke6 {[%emt 0:00:55]} 46. Re2+ {[%emt 0:00:00]} Kd6 {[%emt 0:01:01]} 47. Rh8 {[%emt 0:00:00]} Rd7 {[%emt 0:01:20]} 48. Rg8 {[%emt 0:00:00]} Kc7 {[%emt 0:00:54]} 49. Ree8 {[%emt 0:00:00]} Rdd6 {[%emt 0:02:16]} 50. a4 {[%emt 0:00:00]} Rbc6 {[%emt 0:02:27]} 51. a5 {[%emt 0:00:00]} Kb7 {[%emt 0:00:59]} 52. Ka3 {[%emt 0:00:00]} Rc7 {[%emt 0:00:29]} 53. Rb8+ {[%emt 0:00:00]} Ka7 {[%emt 0:00:44]} 54. Ra8+ {[%emt 0:00:00]} Kb7 {[%emt 0:00:06]} 55. Rgb8+ {[%emt 0:00:00]} Kc6 {[%emt 0:00:23]} 56. Rxa6+ {[%emt 0:00:00]} Kd7 {[%emt 0:00:09]} 57. Rxd6+ {[%emt 0:00:00]} Kxd6 {[%emt 0:00:07]} 58. Rb6+ {[%emt 0:00:00]} Kd7 {[%emt 0:00:32]} 59. Rxg6 {[%emt 0:00:00]} Kc8 {[%emt 0:00:28]} 60. Rd6 {[%emt 0:00:00]} Kb7 {[%emt 0:00:11]} 61. Rxd5 {[%emt 0:00:00]} Ka6 {[%emt 0:00:32]} 62. Rc5 {[%emt 0:00:00]} Rb7 {[%emt 0:00:15]} 63. Rxc4 {[%emt 0:00:00]} Rb5 {[%emt 0:00:27]} 64. Rc6+ {[%emt 0:00:00]} Ka7 {[%emt 0:00:06]} 65. Rc5 {[%emt 0:00:00]} Rb7 {[%emt 0:00:08]} 66. g6 {[%emt 0:00:00]} Ka6 {[%emt 0:00:05]} 67. Rg5 {[%emt 0:00:00]} Rg7 {[%emt 0:00:11]} 68. Kb3 {[%emt 0:00:00]} Ka7 {[%emt 0:00:11]} 69. Kc4 {[%emt 0:00:00]} Ka6 {[%emt 0:00:06]} 70. Kd5 {[%emt 0:00:00]} Rb7 {[%emt 0:00:16]} 71. Ke6 {[%emt 0:00:00]} Rxb2 {[%emt 0:00:16]} 72. Rg3 {[%emt 0:00:00]} Ka7 {[%emt 0:00:11]} 73. g7 {[%emt 0:00:00]} Rb7 {[%emt 0:00:09]} 74. g8=Q {[%emt 0:00:00]} Rc7 {[%emt 0:00:11]} 75. Rg7 {[%emt 0:00:00]} Rxg7 {[%emt 0:00:18]} 76. Qxg7+ {[%emt 0:00:00]} Ka8 {[%emt 0:00:06]} 77. Kd6 {[%emt 0:00:00]} Kb8 {[%emt 0:00:04]} 78. Kc6 {[%emt 0:00:00]} Kc8 {[%emt 0:00:04]} 79. Qc7# {[%emt 0:00:00]} 1-0

[Event "British Championship 2024"]
[Site "Hull"]
[Date "2024.08.01"]
[Round "6.39"]
[White "Larkin, Benjamin"]
[Black "Murawski, Jan"]
[Result "0-1"]
[Annotator "RC"]
[ECO "C56"]
[WhiteElo "1952"]
[BlackElo "2134"]
[PlyCount "52"]
[EventDate "2024.07.31"]
[EventCountry "GBR"]
[SourceTitle "playchess.com"]
[Source "ChessBase"]
[SourceQuality "1"]
[TimeControl "40/5400+30:1800+30"]

1. e4 {[%emt 0:00:03]} e5 {[%emt 0:00:10]} 2. Nf3 {[%emt 0:00:32]} Nc6 {[%emt 0:00:01]} 3. d4 {[%emt 0:00:22]} exd4 {[%emt 0:00:02]} 4. Bc4 {[%emt 0:00:18]} Nf6 {[%emt 0:00:10]} 5. e5 {[%emt 0:00:07]} d5 {[%emt 0:00:04]} 6. Bb5 {[%emt 0:00:09]} Ne4 {[%emt 0:00:02]} 7. Nxd4 {[%emt 0:00:14]} Bd7 {[%emt 0:00:01]} 8. Bxc6 {[%emt 0:00:16]} bxc6 {[%emt 0:00:07]} 9. O-O {[%emt 0:00:21]} Bc5 {[%emt 0:00:11]} 10. f3 {[%emt 0:00:41]} Ng5 {[%emt 0:00:01]} 11. f4 {[%emt 0:00:11]} Ne4 {[%emt 0:00:02]} 12. Be3 {[%emt 0:00:07]} Bb6 {[%emt 0:00:06]} 13. Nd2 {[%emt 0:00:20]} Nxd2 {[%emt 0:00:24]} 14. Qxd2 {[%emt 0:00:08]} c5 {[%emt 0:00:02]} 15. Nf3 {[%emt 0:00:11]} d4 {[%emt 0:07:30]} 16. Bf2 {[%emt 0:00:25]} Bc6 {[%emt 0:02:06]} 17. Bh4 {[%emt 0:00:11]} Qd5 {[%emt 0:16:01]} 18. f5 {[%emt 0:00:39]} h6 {[%emt 0:02:20]} 19. Kh1 {[%emt 0:10:29]} Rg8 {[%emt 0:03:00]} 20. Rad1 {[%emt 0:09:59]} g5 {[%emt 0:06:17]} 21. fxg6 {[%emt 0:00:12]} Rxg6 {[%emt 0:00:15]} 22. b3 {[%emt 0:05:50]} c4 {[%emt 0:21:48]} 23. c3 {[%emt 0:19:24]} d3 {[%emt 0:11:23]} 24. Bf6 {[%emt 0:06:55]} Qe4 {[%emt 0:10:03]} 25. Nh4 {[%emt 0:08:03]} Qe2 {[%emt 0:03:45]} 26. Nf3 {[%emt 0:06:50]} Be3 {[%emt 0:02:15]} 0-1

[Event "British Championship 2024"]
[Site "Hull"]
[Date "2024.08.01"]
[Round "6.40"]
[White "Lentzos, Ioanis"]
[Black "Merriman, James"]
[Result "1-0"]
[Annotator "RC"]
[ECO "A40"]
[WhiteElo "2119"]
[BlackElo "1974"]
[PlyCount "105"]
[EventDate "2024.07.31"]
[EventCountry "GBR"]
[SourceTitle "playchess.com"]
[Source "ChessBase"]
[SourceQuality "1"]
[TimeControl "40/5400+30:1800+30"]

1. c4 {[%emt 0:00:03]} b6 {[%emt 0:04:41]} 2. d4 {[%emt 0:00:07]} Bb7 {[%emt 0:00:49]} 3. Nc3 {[%emt 0:00:04]} e6 {[%emt 0:00:07]} 4. e4 {[%emt 0:00:09]} Bb4 {[%emt 0:00:09]} 5. f3 {[%emt 0:00:13]} Qh4+ {[%emt 0:03:17]} 6. g3 {[%emt 0:00:10]} Bxc3+ {[%emt 0:00:05]} 7. bxc3 {[%emt 0:00:03]} Qe7 {[%emt 0:00:17]} 8. Qa4 {[%emt 0:00:09]} c5 {[%emt 0:06:34]} 9. Bd3 {[%emt 0:05:35]} Nc6 {[%emt 0:05:39]} 10. Ne2 {[%emt 0:01:46]} cxd4 {[%emt 0:10:58]} 11. cxd4 {[%emt 0:02:01]} Qb4+ {[%emt 0:00:41]} 12. Qxb4 {[%emt 0:00:26]} Nxb4 {[%emt 0:00:02]} 13. Bb1 {[%emt 0:04:55]} Rc8 {[%emt 0:04:43]} 14. a3 {[%emt 0:05:22]} Nc6 {[%emt 0:00:12]} 15. Bd2 {[%emt 0:03:55]} Ba6 {[%emt 0:08:13]} 16. Ba2 {[%emt 0:15:20]} Nge7 {[%emt 0:03:19]} 17. f4 {[%emt 0:12:00]} O-O {[%emt 0:07:29]} 18. Rc1 {[%emt 0:02:20]} d6 {[%emt 0:05:46]} 19. Kf2 {[%emt 0:09:56]} Nd8 {[%emt 0:04:33]} 20. Bb4 {[%emt 0:03:49]} Nb7 {[%emt 0:00:53]} 21. Rhd1 {[%emt 0:00:20]} Rfd8 {[%emt 0:05:19]} 22. g4 {[%emt 0:02:48]} Nc6 {[%emt 0:27:44]} 23. d5 {[%emt 0:00:19]} exd5 {[%emt 0:00:30]} 24. cxd5 {[%emt 0:00:18]} Nxb4 {[%emt 0:00:00]} 25. axb4 {[%emt 0:00:19]} Bxe2 {[%emt 0:00:00]} 26. Kxe2 {[%emt 0:00:18]} a5 {[%emt 0:00:00]} 27. Rc6 {[%emt 0:03:44]} Re8 {[%emt 0:00:00]} 28. Bb1 {[%emt 0:01:37]} axb4 {[%emt 0:00:00]} 29. Rxb6 {[%emt 0:00:08]} Nc5 {[%emt 0:00:00]} 30. Rxb4 {[%emt 0:00:20]} h5 {[%emt 0:00:00]} 31. Kf3 {[%emt 0:02:10]} hxg4+ {[%emt 0:00:00]} 32. Kxg4 {[%emt 0:00:06]} g6 {[%emt 0:04:30]} 33. h4 {[%emt 0:03:04]} Nxe4 {[%emt 0:00:00]} 34. Bxe4 {[%emt 0:00:11]} Rxe4 {[%emt 0:00:00]} 35. Rxe4 {[%emt 0:00:08]} f5+ {[%emt 0:00:00]} 36. Kg5 {[%emt 0:00:28]} fxe4 {[%emt 0:00:00]} 37. Kxg6 {[%emt 0:00:09]} Rc2 {[%emt 0:00:00]} 38. Re1 {[%emt 0:01:16]} Rg2+ {[%emt 0:00:00]} 39. Kf6 {[%emt 0:00:18]} Rg4 {[%emt 0:00:00]} 40. Rxe4 {[%emt 0:00:13]} Rxh4 {[%emt 0:00:00]} 41. Ke7 {[%emt 0:33:42]} Rh6 {[%emt 0:29:25]} 42. Re6 {[%emt 0:00:22]} Rh4 {[%emt 0:01:12]} 43. f5 {[%emt 0:01:18]} Rf4 {[%emt 0:02:51]} 44. f6 {[%emt 0:00:21]} Rf5 {[%emt 0:00:04]} 45. Rxd6 {[%emt 0:00:10]} Re5+ {[%emt 0:00:00]} 46. Re6 {[%emt 0:00:00]} Rxd5 {[%emt 0:00:00]} 47. f7+ {[%emt 0:00:00]} Kh7 {[%emt 0:00:00]} 48. Rh6+ {[%emt 0:00:00]} Kxh6 {[%emt 0:00:00]} 49. f8=Q+ {[%emt 0:00:00]} Kh7 {[%emt 0:00:00]} 50. Qf7+ {[%emt 0:00:00]} Kh8 {[%emt 0:00:00]} 51. Qxd5 {[%emt 0:00:00]} Kh7 {[%emt 0:05:58]} 52. Qg5 {[%emt 0:00:00]} Kh8 {[%emt 0:00:00]} 53. Kf7 {[%emt 0:00:00]} 1-0

[Event "British Championship 2024"]
[Site "Hull"]
[Date "2024.08.01"]
[Round "6.41"]
[White "Verma, Aditya"]
[Black "Verbytski, Oleg"]
[Result "1/2-1/2"]
[Annotator "RC"]
[ECO "D35"]
[WhiteElo "2118"]
[BlackElo "2008"]
[PlyCount "68"]
[EventDate "2024.07.31"]
[EventCountry "GBR"]
[SourceTitle "playchess.com"]
[Source "ChessBase"]
[SourceQuality "1"]
[TimeControl "40/5400+30:1800+30"]

1. d4 {[%emt 0:00:59]} d5 {[%emt 0:00:07]} 2. c4 {[%emt 0:00:05]} e6 {[%emt 0:00:06]} 3. Nc3 {[%emt 0:00:06]} Nf6 {[%emt 0:00:06]} 4. cxd5 {[%emt 0:00:09]} exd5 {[%emt 0:00:05]} 5. Bg5 {[%emt 0:00:04]} c6 {[%emt 0:00:05]} 6. e3 {[%emt 0:00:10]} h6 {[%emt 0:00:05]} 7. Bf4 {[%emt 0:04:44]} Bd6 {[%emt 0:00:06]} 8. Nge2 {[%emt 0:03:04]} Bf5 {[%emt 0:01:27]} 9. h3 {[%emt 0:03:11]} Ne4 {[%emt 0:06:09]} 10. Nxe4 {[%emt 0:02:26]} Bxe4 {[%emt 0:00:11]} 11. Bxd6 {[%emt 0:01:34]} Qxd6 {[%emt 0:00:08]} 12. Nc3 {[%emt 0:00:02]} Bg6 {[%emt 0:03:15]} 13. Bd3 {[%emt 0:00:38]} Nd7 {[%emt 0:01:15]} 14. Rb1 {[%emt 0:02:13]} a5 {[%emt 0:00:38]} 15. O-O {[%emt 0:01:00]} O-O {[%emt 0:09:09]} 16. a4 {[%emt 0:03:09]} Nb6 {[%emt 0:05:21]} 17. b3 {[%emt 0:01:06]} Nd7 {[%emt 0:09:04]} 18. Rb2 {[%emt 0:04:06]} b6 {[%emt 0:12:10]} 19. Qc2 {[%emt 0:02:27]} Bxd3 {[%emt 0:00:23]} 20. Qxd3 {[%emt 0:00:03]} Nf6 {[%emt 0:00:37]} 21. f3 {[%emt 0:08:51]} Rfe8 {[%emt 0:09:26]} 22. Rd2 {[%emt 0:12:53]} Rad8 {[%emt 0:10:05]} 23. Re1 {[%emt 0:02:49]} Qg3 {[%emt 0:05:58]} 24. Qf1 {[%emt 0:00:27]} c5 {[%emt 0:00:10]} 25. Qf2 {[%emt 0:00:39]} Qb8 {[%emt 0:06:15]} 26. Red1 {[%emt 0:01:50]} Qb7 {[%emt 0:00:34]} 27. Nb5 {[%emt 0:03:32]} Qe7 {[%emt 0:02:10]} 28. Re1 {[%emt 0:02:19]} cxd4 {[%emt 0:01:13]} 29. Nxd4 {[%emt 0:02:20]} Rc8 {[%emt 0:00:07]} 30. Qg3 {[%emt 0:02:38]} Qc7 {[%emt 0:02:14]} 31. Qf2 {[%emt 0:06:01]} Qe5 {[%emt 0:01:32]} 32. Rc2 {[%emt 0:01:59]} Rc5 {[%emt 0:02:10]} 33. Qd2 {[%emt 0:00:08]} Rec8 {[%emt 0:01:11]} 34. Rec1 {[%emt 0:02:31]} Nd7 {[%emt 0:06:40]} 1/2-1/2

[Event "British Championship 2024"]
[Site "Hull"]
[Date "2024.08.01"]
[Round "6.42"]
[White "Arnott, Jonathan W"]
[Black "Sanger, Jake M"]
[Result "1/2-1/2"]
[Annotator "RC"]
[ECO "B88"]
[WhiteElo "2104"]
[BlackElo "2026"]
[PlyCount "32"]
[EventDate "2024.07.31"]
[EventCountry "GBR"]
[SourceTitle "playchess.com"]
[Source "ChessBase"]
[SourceQuality "1"]
[TimeControl "40/5400+30:1800+30"]

1. e4 {[%emt 0:00:01]} c5 {[%emt 0:00:04]} 2. Nf3 {[%emt 0:00:05]} Nc6 {[%emt 0:00:05]} 3. Bc4 {[%emt 0:00:16]} d6 {[%emt 0:02:00]} 4. O-O {[%emt 0:00:19]} Nf6 {[%emt 0:01:12]} 5. Re1 {[%emt 0:01:28]} a6 {[%emt 0:02:53]} 6. a4 {[%emt 0:03:58]} e6 {[%emt 0:00:44]} 7. Nc3 {[%emt 0:09:07]} Be7 {[%emt 0:00:18]} 8. d4 {[%emt 0:06:39]} cxd4 {[%emt 0:00:07]} 9. Nxd4 {[%emt 0:00:04]} Qc7 {[%emt 0:01:55]} 10. Nxc6 {[%emt 0:01:12]} bxc6 {[%emt 0:00:12]} 11. Be3 {[%emt 0:02:43]} a5 {[%emt 0:02:22]} 12. Qf3 {[%emt 0:01:15]} O-O {[%emt 0:13:29]} 13. Qg3 {[%emt 0:05:35]} Nh5 {[%emt 0:02:22]} 14. Qf3 {[%emt 0:01:42]} Nf6 {[%emt 0:00:04]} 15. Qg3 {[%emt 0:00:15]} Nh5 {[%emt 0:00:18]} 16. Qf3 {[%emt 0:00:22]} Nf6 {[%emt 0:00:05]} 1/2-1/2

[Event "British Championship 2024"]
[Site "Hull"]
[Date "2024.08.01"]
[Round "6.43"]
[White "Atako, Chino C"]
[Black "Beaumont, Chris R"]
[Result "0-1"]
[Annotator "RC"]
[ECO "D93"]
[WhiteElo "2003"]
[BlackElo "2198"]
[PlyCount "56"]
[EventDate "2024.07.31"]
[EventCountry "GBR"]
[SourceTitle "playchess.com"]
[Source "ChessBase"]
[SourceQuality "1"]
[TimeControl "40/5400+30:1800+30"]

1. d4 {[%emt 0:02:59]} Nf6 {[%emt 0:00:17]} 2. c4 {[%emt 0:00:07]} g6 {[%emt 0:00:06]} 3. Nc3 {[%emt 0:00:06]} Bg7 {[%emt 0:00:11]} 4. Nf3 {[%emt 0:00:06]} O-O {[%emt 0:00:08]} 5. Bf4 {[%emt 0:00:04]} d5 {[%emt 0:03:00]} 6. e3 {[%emt 0:00:09]} c5 {[%emt 0:00:05]} 7. dxc5 {[%emt 0:00:06]} Qa5 {[%emt 0:00:10]} 8. Rc1 {[%emt 0:00:06]} dxc4 {[%emt 0:00:09]} 9. Bxc4 {[%emt 0:00:09]} Qxc5 {[%emt 0:00:05]} 10. Qe2 {[%emt 0:06:09]} Nc6 {[%emt 0:10:37]} 11. h3 {[%emt 0:00:45]} e5 {[%emt 0:02:57]} 12. Bh2 {[%emt 0:02:43]} e4 {[%emt 0:16:06]} 13. Nd2 {[%emt 0:00:13]} Qe7 {[%emt 0:05:16]} 14. O-O {[%emt 0:00:50]} h5 {[%emt 0:09:30]} 15. Rfd1 {[%emt 0:11:36]} Bf5 {[%emt 0:00:38]} 16. Nf1 {[%emt 0:01:37]} Rad8 {[%emt 0:01:18]} 17. Ng3 {[%emt 0:10:11]} Bc8 {[%emt 0:02:51]} 18. Nd5 {[%emt 0:01:32]} Nxd5 {[%emt 0:00:13]} 19. Bxd5 {[%emt 0:00:13]} Nb4 {[%emt 0:00:37]} 20. Bc4 {[%emt 0:06:16]} h4 {[%emt 0:05:12]} 21. Nf1 {[%emt 0:00:07]} Bf5 {[%emt 0:00:10]} 22. a3 {[%emt 0:03:27]} Nd3 {[%emt 0:00:15]} 23. Rb1 {[%emt 0:03:46]} a6 {[%emt 0:03:28]} 24. a4 {[%emt 0:01:44]} Qb4 {[%emt 0:02:33]} 25. b3 {[%emt 0:00:57]} b5 {[%emt 0:00:12]} 26. axb5 {[%emt 0:01:07]} axb5 {[%emt 0:00:02]} 27. Bxd3 {[%emt 0:00:15]} exd3 {[%emt 0:00:08]} 28. Qf3 {[%emt 0:00:37]} d2 {[%emt 0:01:35]} 0-1